[Event "Late-Titled-Tuesday-Blitz-May-14-2024"]
[Site "Chess.com"]
[Date "2024.05.14"]
[Round "8"]
[White "hsd2016"]
[Black "Roedor"]
[Result "1/2-1/2"]
[WhiteElo "2308"]
[BlackElo "2384"]
[TimeControl "180+1"]
[EndTime "15:28:03 PDT"]
[Termination "Game drawn by repetition"]

1. c4 {[%clk 0:03:00.9]} 1... Nf6 {[%clk 0:02:55.9]} 2. g3 {[%clk 0:03:00.2]}
2... g6 {[%clk 0:02:54.6]} 3. Bg2 {[%clk 0:03:01.1]} 3... Bg7 {[%clk 0:02:53.8]}
4. Nf3 {[%clk 0:03:02]} 4... O-O {[%clk 0:02:53.8]} 5. O-O {[%clk 0:03:01.7]}
5... d5 {[%clk 0:02:50.7]} 6. cxd5 {[%clk 0:03:01.4]} 6... Nxd5 {[%clk
0:02:51.3]} 7. d4 {[%clk 0:03:00]} 7... Nc6 {[%clk 0:02:51.3]} 8. e4 {[%clk
0:02:59.2]} 8... Nb6 {[%clk 0:02:50.4]} 9. Nc3 {[%clk 0:02:58.8]} 9... Nxd4
{[%clk 0:02:47.3]} 10. Nxd4 {[%clk 0:02:59]} 10... Qxd4 {[%clk 0:02:48.2]} 11.
Qe2 {[%clk 0:02:57.9]} 11... Qc4 {[%clk 0:02:43.9]} 12. Qxc4 {[%clk 0:02:53.9]}
12... Nxc4 {[%clk 0:02:44.8]} 13. Nd5 {[%clk 0:02:54.8]} 13... Nxb2 {[%clk
0:02:31.2]} 14. Nxe7+ {[%clk 0:02:36.9]} 14... Kh8 {[%clk 0:02:29.8]} 15. Rb1
{[%clk 0:02:37.8]} 15... Nd3 {[%clk 0:02:28.5]} 16. Ba3 {[%clk 0:02:36.1]} 16...
b6 {[%clk 0:02:18.1]} 17. Nd5 {[%clk 0:02:34]} 17... c5 {[%clk 0:02:12.4]} 18.
Rfd1 {[%clk 0:02:29.7]} 18... Ne5 {[%clk 0:02:05.7]} 19. Bb2 {[%clk 0:02:20.5]}
19... Bg4 {[%clk 0:02:02.6]} 20. Rd2 {[%clk 0:02:06.7]} 20... Nf3+ {[%clk
0:01:35]} 21. Bxf3 {[%clk 0:02:05.3]} 21... Bxf3 {[%clk 0:01:35.9]} 22. Nf6
{[%clk 0:02:01.7]} 22... Rad8 {[%clk 0:01:31.5]} 23. Rxd8 {[%clk 0:02:00.3]}
23... Rxd8 {[%clk 0:01:32.4]} 24. Re1 {[%clk 0:01:58.2]} 24... Rd1 {[%clk
0:01:32.1]} 25. Rxd1 {[%clk 0:01:57.9]} 25... Bxd1 {[%clk 0:01:33]} 26. e5
{[%clk 0:01:52.8]} 26... b5 {[%clk 0:01:28.9]} 27. f4 {[%clk 0:01:52.4]} 27...
c4 {[%clk 0:01:28.7]} 28. Kf2 {[%clk 0:01:53.3]} 28... Bf8 {[%clk 0:01:26.8]}
29. Nd7 {[%clk 0:01:50.7]} 29... Bb4 {[%clk 0:01:23.3]} 30. e6+ {[%clk
0:01:39.8]} 30... Kg8 {[%clk 0:01:14.3]} 31. Nf6+ {[%clk 0:01:39.5]} 31... Kf8
{[%clk 0:01:13.9]} 32. a3 {[%clk 0:00:29.8]} 32... c3 {[%clk 0:01:12.7]} 33. Bc1
{[%clk 0:00:26.8]} 33... Be7 {[%clk 0:01:06.1]} 34. Nxh7+ {[%clk 0:00:17]} 34...
Kg7 {[%clk 0:01:03]} 35. Ng5 {[%clk 0:00:15.2]} 35... Bxg5 {[%clk 0:00:59.2]}
36. fxg5 {[%clk 0:00:16.1]} 36... fxe6 {[%clk 0:00:59.5]} 37. Ke3 {[%clk
0:00:16.1]} 37... a5 {[%clk 0:00:58.9]} 38. Kd4 {[%clk 0:00:13.9]} 38... b4
{[%clk 0:00:59.3]} 39. Kc4 {[%clk 0:00:14.5]} 39... bxa3 {[%clk 0:00:13.8]} 40.
Bxa3 {[%clk 0:00:14.9]} 40... c2 {[%clk 0:00:12.9]} 41. Kb5 {[%clk 0:00:15]}
41... a4 {[%clk 0:00:13.2]} 42. Bc1 {[%clk 0:00:13]} 42... Kf7 {[%clk
0:00:13.8]} 43. Kxa4 {[%clk 0:00:13.1]} 43... Ke7 {[%clk 0:00:14.4]} 44. Kb4
{[%clk 0:00:13.8]} 44... Kd6 {[%clk 0:00:15.3]} 45. Kc4 {[%clk 0:00:14.5]} 45...
Ke5 {[%clk 0:00:15.6]} 46. Kd3 {[%clk 0:00:14.8]} 46... Kf5 {[%clk 0:00:15.8]}
47. Kd4 {[%clk 0:00:13.5]} 47... e5+ {[%clk 0:00:15.7]} 48. Kd5 {[%clk
0:00:12.5]} 48... e4 {[%clk 0:00:15.7]} 49. Kd4 {[%clk 0:00:13]} 49... Bf3
{[%clk 0:00:14.1]} 50. Kc3 {[%clk 0:00:10.5]} 50... Bd1 {[%clk 0:00:14]} 51. Kd4
{[%clk 0:00:11]} 51... Kg4 {[%clk 0:00:12.5]} 52. Kxe4 {[%clk 0:00:10.7]} 52...
Kh3 {[%clk 0:00:13.4]} 53. Ke5 {[%clk 0:00:10.4]} 53... Kxh2 {[%clk 0:00:13.8]}
54. Kf6 {[%clk 0:00:11.1]} 54... Bh5 {[%clk 0:00:13.7]} 55. Bf4 {[%clk 0:00:11]}
55... Kh3 {[%clk 0:00:13.2]} 56. Ke5 {[%clk 0:00:11.1]} 56... Kg4 {[%clk
0:00:13.4]} 57. Kd4 {[%clk 0:00:11.4]} 57... Kf3 {[%clk 0:00:13.6]} 58. Kd3
{[%clk 0:00:10.5]} 58... c1=Q {[%clk 0:00:13.1]} 59. Bxc1 {[%clk 0:00:10.2]}
59... Kxg3 {[%clk 0:00:14]} 60. Kd4 {[%clk 0:00:11.1]} 60... Kg4 {[%clk
0:00:14.8]} 61. Ke5 {[%clk 0:00:11.7]} 61... Kf3 {[%clk 0:00:15.7]} 62. Kf6
{[%clk 0:00:12.6]} 62... Ke2 {[%clk 0:00:16.6]} 63. Bb2 {[%clk 0:00:13.3]} 63...
Kd1 {[%clk 0:00:17.5]} 64. Be5 {[%clk 0:00:14.2]} 64... Ke2 {[%clk 0:00:18.4]}
65. Bd6 {[%clk 0:00:15]} 65... Kd1 {[%clk 0:00:19.3]} 66. Be7 {[%clk 0:00:15.9]}
66... Ke2 {[%clk 0:00:20.2]} 67. Bf8 {[%clk 0:00:16.8]} 67... Kd1 {[%clk
0:00:21.1]} 68. Bg7 {[%clk 0:00:17.7]} 68... Ke2 {[%clk 0:00:22]} 69. Bh6 {[%clk
0:00:18.6]} 69... Kd1 {[%clk 0:00:22.9]} 70. Bg7 {[%clk 0:00:19.5]} 70... Ke2
{[%clk 0:00:23.8]} 71. Bf8 {[%clk 0:00:20.4]} 71... Kd1 {[%clk 0:00:24.7]} 72.
Be7 {[%clk 0:00:21.3]} 72... Ke2 {[%clk 0:00:25.6]} 73. Bf8 {[%clk 0:00:22.2]}
1/2-1/2

[Event "Late-Titled-Tuesday-Blitz-May-14-2024"]
[Site "Chess.com"]
[Date "2024.05.14"]
[Round "8"]
[White "FaustinoOro"]
[Black "Kosak12"]
[Result "1-0"]
[WhiteElo "2923"]
[BlackElo "2768"]
[TimeControl "180+1"]
[EndTime "15:28:05 PDT"]
[Termination "FaustinoOro won on time"]

1. e4 {[%clk 0:02:59.8]} 1... c6 {[%clk 0:02:42.6]} 2. Nf3 {[%clk 0:02:58.2]}
2... d5 {[%clk 0:02:42.4]} 3. Nc3 {[%clk 0:02:58.6]} 3... Bg4 {[%clk 0:02:41.3]}
4. h3 {[%clk 0:02:55.3]} 4... Bxf3 {[%clk 0:02:41.4]} 5. Qxf3 {[%clk 0:02:56.2]}
5... e6 {[%clk 0:02:41.6]} 6. Be2 {[%clk 0:02:56.1]} 6... Nd7 {[%clk 0:02:37.8]}
7. d4 {[%clk 0:02:54.1]} 7... dxe4 {[%clk 0:02:33.8]} 8. Nxe4 {[%clk 0:02:54.2]}
8... Ngf6 {[%clk 0:02:34.4]} 9. O-O {[%clk 0:02:54]} 9... Nxe4 {[%clk
0:02:34.1]} 10. Qxe4 {[%clk 0:02:54.9]} 10... Nf6 {[%clk 0:02:34.6]} 11. Qd3
{[%clk 0:02:55.6]} 11... Bd6 {[%clk 0:02:29.4]} 12. Rd1 {[%clk 0:02:53.6]} 12...
O-O {[%clk 0:02:29]} 13. Bf3 {[%clk 0:02:53.4]} 13... h6 {[%clk 0:02:24.2]} 14.
g3 {[%clk 0:02:51.1]} 14... Qc7 {[%clk 0:02:23.7]} 15. Kg2 {[%clk 0:02:51]}
15... Rad8 {[%clk 0:02:22.6]} 16. Qe2 {[%clk 0:02:41.4]} 16... Rfe8 {[%clk
0:02:18.2]} 17. c3 {[%clk 0:02:41.3]} 17... Nd5 {[%clk 0:02:09.6]} 18. Bd2
{[%clk 0:02:36.4]} 18... Ne7 {[%clk 0:02:01.1]} 19. Re1 {[%clk 0:02:32.5]} 19...
Nf5 {[%clk 0:02:00.6]} 20. Be4 {[%clk 0:02:03.1]} 20... c5 {[%clk 0:01:17.5]}
21. dxc5 {[%clk 0:02:00.1]} 21... Bxc5 {[%clk 0:01:14.2]} 22. Rad1 {[%clk
0:01:53.2]} 22... Nd6 {[%clk 0:01:01.1]} 23. Bf3 {[%clk 0:01:45.3]} 23... Bb6
{[%clk 0:00:52.4]} 24. Bc1 {[%clk 0:01:25.1]} 24... e5 {[%clk 0:00:47.1]} 25.
Bd5 {[%clk 0:01:23.3]} 25... Nf5 {[%clk 0:00:28.8]} 26. Qg4 {[%clk 0:01:19.7]}
26... Qc5 {[%clk 0:00:11.5]} 27. Bxf7+ {[%clk 0:01:11.6]} 27... Kxf7 {[%clk
0:00:12.4]} 28. Qxf5+ {[%clk 0:01:11.6]} 28... Kg8 {[%clk 0:00:13.1]} 29. Rxd8
{[%clk 0:00:48.5]} 29... Bxd8 {[%clk 0:00:14]} 30. Qe4 {[%clk 0:00:45.1]} 30...
Qb5 {[%clk 0:00:12.1]} 31. c4 {[%clk 0:00:43.5]} 31... Qd7 {[%clk 0:00:09.1]}
32. Be3 {[%clk 0:00:41]} 32... a6 {[%clk 0:00:09]} 33. b3 {[%clk 0:00:39.4]}
33... Bf6 {[%clk 0:00:08.3]} 34. c5 {[%clk 0:00:38.2]} 34... Rd8 {[%clk
0:00:07.8]} 35. Rc1 {[%clk 0:00:38.2]} 35... Qc6 {[%clk 0:00:03.9]} 36. Qxc6
{[%clk 0:00:34.5]} 36... bxc6 {[%clk 0:00:04.8]} 37. Kf3 {[%clk 0:00:35.2]}
37... Kf7 {[%clk 0:00:04.8]} 38. Ke4 {[%clk 0:00:35.6]} 38... Ke6 {[%clk
0:00:05.6]} 39. Rc4 {[%clk 0:00:35.1]} 39... Bg5 {[%clk 0:00:05]} 40. Bxg5
{[%clk 0:00:31.4]} 40... hxg5 {[%clk 0:00:05.9]} 41. Ra4 {[%clk 0:00:31.8]}
41... Rd2 {[%clk 0:00:05]} 42. Rxa6 {[%clk 0:00:30.5]} 42... Rd4+ {[%clk
0:00:03.8]} 43. Ke3 {[%clk 0:00:30.5]} 43... Kd5 {[%clk 0:00:04.7]} 44. Ra5
{[%clk 0:00:26.8]} 44... g4 {[%clk 0:00:03.8]} 45. hxg4 {[%clk 0:00:26.2]} 45...
Rxg4 {[%clk 0:00:04.7]} 46. a3 {[%clk 0:00:25]} 46... Re4+ {[%clk 0:00:04.1]}
47. Kf3 {[%clk 0:00:25.1]} 47... g5 {[%clk 0:00:04.8]} 48. b4 {[%clk 0:00:24.4]}
48... g4+ {[%clk 0:00:05.2]} 49. Kg2 {[%clk 0:00:25.1]} 49... Re2 {[%clk
0:00:05.9]} 50. Ra8 {[%clk 0:00:25]} 50... e4 {[%clk 0:00:06.1]} 51. Kf1 {[%clk
0:00:25.6]} 51... Ra2 {[%clk 0:00:06]} 52. a4 {[%clk 0:00:20.5]} 52... e3 {[%clk
0:00:04.4]} 53. fxe3 {[%clk 0:00:18.1]} 53... Ke4 {[%clk 0:00:04.9]} 54. a5
{[%clk 0:00:18.1]} 54... Kf3 {[%clk 0:00:03.2]} 55. Rf8+ {[%clk 0:00:17.4]}
55... Kxg3 {[%clk 0:00:03.4]} 56. Rf6 {[%clk 0:00:18.1]} 56... Kh3 {[%clk
0:00:02.5]} 57. Rh6+ {[%clk 0:00:18.1]} 57... Kg3 {[%clk 0:00:02.7]} 58. Rxc6
{[%clk 0:00:18.8]} 58... Kf3 {[%clk 0:00:03.2]} 59. Rf6+ {[%clk 0:00:18.8]}
59... Kxe3 {[%clk 0:00:03.8]} 60. c6 {[%clk 0:00:18.6]} 60... g3 {[%clk
0:00:03.2]} 61. c7 {[%clk 0:00:18.6]} 61... Rc2 {[%clk 0:00:03.5]} 62. Rf7
{[%clk 0:00:19.1]} 62... Kd4 {[%clk 0:00:02.5]} 63. a6 {[%clk 0:00:19.4]} 63...
g2+ {[%clk 0:00:01.6]} 64. Kg1 {[%clk 0:00:19.4]} 64... Ke5 {[%clk 0:00:02.5]}
65. a7 {[%clk 0:00:19.6]} 1-0

[Event "Late-Titled-Tuesday-Blitz-May-14-2024"]
[Site "Chess.com"]
[Date "2024.05.14"]
[Round "8"]
[White "Jarming"]
[Black "Mikhail_Bryakin"]
[Result "0-1"]
[WhiteElo "2686"]
[BlackElo "2849"]
[TimeControl "180+1"]
[EndTime "15:28:07 PDT"]
[Termination "Mikhail_Bryakin won on time"]

1. c4 {[%clk 0:03:00.9]} 1... c6 {[%clk 0:03:00]} 2. g3 {[%clk 0:02:58.4]} 2...
d6 {[%clk 0:03:00.9]} 3. Bg2 {[%clk 0:02:59.2]} 3... Nd7 {[%clk 0:03:01.5]} 4.
e3 {[%clk 0:02:59.4]} 4... h6 {[%clk 0:03:02.4]} 5. Ne2 {[%clk 0:02:59.3]} 5...
g5 {[%clk 0:03:03.3]} 6. Nd4 {[%clk 0:03:00]} 6... e6 {[%clk 0:02:58.6]} 7. d3
{[%clk 0:02:59.9]} 7... Bg7 {[%clk 0:02:59.1]} 8. h4 {[%clk 0:02:59.9]} 8... Nf8
{[%clk 0:02:54.6]} 9. Nc3 {[%clk 0:02:59.9]} 9... a6 {[%clk 0:02:54.1]} 10. a3
{[%clk 0:02:58.4]} 10... Bd7 {[%clk 0:02:53.7]} 11. Nf3 {[%clk 0:02:55.4]} 11...
g4 {[%clk 0:02:53.5]} 12. Nd2 {[%clk 0:02:54.7]} 12... h5 {[%clk 0:02:53.2]} 13.
d4 {[%clk 0:02:55]} 13... Ng6 {[%clk 0:02:52.5]} 14. f3 {[%clk 0:02:54.2]} 14...
f5 {[%clk 0:02:52.5]} 15. Ne2 {[%clk 0:02:51.6]} 15... Nf6 {[%clk 0:02:52.5]}
16. O-O {[%clk 0:02:49.4]} 16... O-O {[%clk 0:02:52.4]} 17. b3 {[%clk
0:02:49.4]} 17... Qe7 {[%clk 0:02:52.7]} 18. Bb2 {[%clk 0:02:46.8]} 18... e5
{[%clk 0:02:52]} 19. dxe5 {[%clk 0:02:46.2]} 19... dxe5 {[%clk 0:02:52.9]} 20.
Kh2 {[%clk 0:02:45.9]} 20... Rad8 {[%clk 0:02:52.6]} 21. Qc2 {[%clk 0:02:45.7]}
21... b5 {[%clk 0:02:52.1]} 22. Rae1 {[%clk 0:02:44.3]} 22... Rfe8 {[%clk
0:02:50.8]} 23. a4 {[%clk 0:02:42.2]} 23... b4 {[%clk 0:02:50.4]} 24. c5 {[%clk
0:02:41.1]} 24... Nd5 {[%clk 0:02:49.8]} 25. Nc1 {[%clk 0:02:30.4]} 25... Nxh4
{[%clk 0:02:49.4]} 26. fxg4 {[%clk 0:02:22.4]} 26... hxg4 {[%clk 0:02:45.1]} 27.
gxh4 {[%clk 0:02:19.2]} 27... Qxh4+ {[%clk 0:02:44.8]} 28. Kg1 {[%clk
0:02:19.7]} 28... Be6 {[%clk 0:02:39.1]} 29. Nd3 {[%clk 0:02:16]} 29... Bf7
{[%clk 0:02:36.4]} 30. Rxf5 {[%clk 0:02:15.8]} 30... Bg6 {[%clk 0:02:36.3]} 31.
Rff1 {[%clk 0:02:05.5]} 31... Rf8 {[%clk 0:02:31.1]} 32. Qc4 {[%clk 0:02:01.1]}
32... Kh7 {[%clk 0:02:22.1]} 33. Bxe5 {[%clk 0:01:44]} 33... Rxf1+ {[%clk
0:02:13.3]} 34. Nxf1 {[%clk 0:01:44.9]} 34... Bxe5 {[%clk 0:02:08.8]} 35. Nxe5
{[%clk 0:01:43.3]} 35... Qxe1 {[%clk 0:02:09.1]} 36. Qxg4 {[%clk 0:01:39.7]}
36... Rg8 {[%clk 0:01:50.4]} 37. Qh3+ {[%clk 0:01:32.8]} 37... Kg7 {[%clk
0:01:50.2]} 38. Qd7+ {[%clk 0:01:32.5]} 38... Kh6 {[%clk 0:01:50.7]} 39. Nxc6
{[%clk 0:01:05.4]} 39... Bd3 {[%clk 0:01:40]} 40. Qe6+ {[%clk 0:01:00.7]} 40...
Rg6 {[%clk 0:01:39.8]} 41. Qh3+ {[%clk 0:00:45.1]} 41... Kg7 {[%clk 0:01:39.6]}
42. Qd7+ {[%clk 0:00:45]} 42... Kh8 {[%clk 0:01:40]} 43. Qe8+ {[%clk 0:00:41.1]}
43... Kh7 {[%clk 0:01:38.6]} 44. Qf7+ {[%clk 0:00:37.3]} 44... Kh6 {[%clk
0:01:37.5]} 45. Qf8+ {[%clk 0:00:37.4]} 45... Kg5 {[%clk 0:01:34]} 46. Ne5
{[%clk 0:00:33.6]} 46... Rf6 {[%clk 0:01:27.8]} 47. Nf3+ {[%clk 0:00:32.9]}
47... Rxf3 {[%clk 0:01:25]} 48. Qxf3 {[%clk 0:00:33.8]} 48... Nf6 {[%clk
0:01:19.9]} 49. Qf2 {[%clk 0:00:26.5]} 49... Qc3 {[%clk 0:01:17]} 50. c6 {[%clk
0:00:24.8]} 50... Kg6 {[%clk 0:01:04.4]} 51. Nh2 {[%clk 0:00:22.4]} 51... Qc1+
{[%clk 0:01:03.4]} 52. Bf1 {[%clk 0:00:22.7]} 52... Be4 {[%clk 0:01:02.7]} 53.
Qg3+ {[%clk 0:00:22]} 53... Kf7 {[%clk 0:01:02.5]} 54. c7 {[%clk 0:00:22.9]}
54... Nd5 {[%clk 0:00:58.3]} 55. Ng4 {[%clk 0:00:20.3]} 55... Qxc7 {[%clk
0:00:44.9]} 56. Qxc7+ {[%clk 0:00:18.9]} 56... Nxc7 {[%clk 0:00:45.8]} 57. Bc4+
{[%clk 0:00:19]} 57... Ke7 {[%clk 0:00:45.4]} 58. Nf2 {[%clk 0:00:18.4]} 58...
Bc2 {[%clk 0:00:45]} 59. Kg2 {[%clk 0:00:16.6]} 59... Kd6 {[%clk 0:00:45.2]} 60.
Kf3 {[%clk 0:00:16.6]} 60... a5 {[%clk 0:00:45.6]} 61. Ne4+ {[%clk 0:00:15.6]}
61... Kc6 {[%clk 0:00:40]} 62. Nf6 {[%clk 0:00:15.3]} 62... Kd6 {[%clk
0:00:39.5]} 63. Kf4 {[%clk 0:00:15.4]} 63... Ne6+ {[%clk 0:00:39]} 64. Kf3
{[%clk 0:00:14.5]} 64... Nc5 {[%clk 0:00:39.4]} 65. Ne8+ {[%clk 0:00:11.7]}
65... Kd7 {[%clk 0:00:38.6]} 66. Nf6+ {[%clk 0:00:10.2]} 66... Kd6 {[%clk
0:00:37.9]} 67. Ne8+ {[%clk 0:00:10.6]} 67... Ke5 {[%clk 0:00:38.3]} 68. Nc7
{[%clk 0:00:08.2]} 68... Nxb3 {[%clk 0:00:38.4]} 69. Nd5 {[%clk 0:00:05.6]}
69... Nd2+ {[%clk 0:00:38.8]} 0-1

[Event "Late-Titled-Tuesday-Blitz-May-14-2024"]
[Site "Chess.com"]
[Date "2024.05.14"]
[Round "8"]
[White "rhwr"]
[Black "PapaieDudu"]
[Result "1-0"]
[WhiteElo "2307"]
[BlackElo "2353"]
[TimeControl "180+1"]
[EndTime "15:28:21 PDT"]
[Termination "rhwr won by resignation"]

1. e4 {[%clk 0:03:00.9]} 1... c5 {[%clk 0:02:52.3]} 2. Be2 {[%clk 0:03:00.5]}
2... Nc6 {[%clk 0:02:51.3]} 3. f4 {[%clk 0:03:01.4]} 3... e6 {[%clk 0:02:51]} 4.
Nf3 {[%clk 0:03:01.4]} 4... d5 {[%clk 0:02:51.7]} 5. d3 {[%clk 0:03:01.4]} 5...
Nf6 {[%clk 0:02:51.3]} 6. e5 {[%clk 0:03:00]} 6... Nd7 {[%clk 0:02:51.5]} 7. c3
{[%clk 0:03:00.6]} 7... Be7 {[%clk 0:02:50.3]} 8. d4 {[%clk 0:03:00.4]} 8... O-O
{[%clk 0:02:49.2]} 9. O-O {[%clk 0:02:59.8]} 9... f6 {[%clk 0:02:41]} 10. Be3
{[%clk 0:02:55.3]} 10... fxe5 {[%clk 0:02:37.9]} 11. fxe5 {[%clk 0:02:55]} 11...
b6 {[%clk 0:02:29.7]} 12. Nbd2 {[%clk 0:02:48.5]} 12... Ndb8 {[%clk 0:02:21.3]}
13. Bd3 {[%clk 0:02:29.2]} 13... Ba6 {[%clk 0:02:18.9]} 14. Bxa6 {[%clk
0:02:24.9]} 14... Nxa6 {[%clk 0:02:19.1]} 15. Qe2 {[%clk 0:02:17.7]} 15... Nc7
{[%clk 0:02:16.6]} 16. Rf2 {[%clk 0:02:03.3]} 16... Qe8 {[%clk 0:02:16.4]} 17.
Raf1 {[%clk 0:02:02.8]} 17... Qg6 {[%clk 0:02:15.1]} 18. Ne1 {[%clk 0:01:43.5]}
18... Rxf2 {[%clk 0:02:13.8]} 19. Rxf2 {[%clk 0:01:43.8]} 19... Rf8 {[%clk
0:02:13.4]} 20. Rxf8+ {[%clk 0:01:43]} 20... Kxf8 {[%clk 0:02:10.4]} 21. Nd3
{[%clk 0:01:39.7]} 21... cxd4 {[%clk 0:01:47.8]} 22. cxd4 {[%clk 0:01:38.6]}
22... Qf5 {[%clk 0:01:45]} 23. a3 {[%clk 0:01:28.6]} 23... Bg5 {[%clk
0:01:40.9]} 24. Bf2 {[%clk 0:01:20.6]} 24... Bxd2 {[%clk 0:00:52.1]} 25. Qxd2
{[%clk 0:01:20.6]} 25... Nb5 {[%clk 0:00:51.8]} 26. Nb4 {[%clk 0:01:09.6]} 26...
Qb1+ {[%clk 0:00:49.4]} 27. Qe1 {[%clk 0:01:04.3]} 27... Qxe1+ {[%clk
0:00:44.8]} 28. Bxe1 {[%clk 0:01:04.2]} 28... Ncxd4 {[%clk 0:00:35.3]} 29. Kf2
{[%clk 0:00:53.7]} 29... a5 {[%clk 0:00:32.3]} 30. Nd3 {[%clk 0:00:50.6]} 30...
Nc6 {[%clk 0:00:27.1]} 31. Ke3 {[%clk 0:00:48.1]} 31... Nbd4 {[%clk 0:00:24.1]}
32. Bg3 {[%clk 0:00:43.5]} 32... Nf5+ {[%clk 0:00:22.4]} 33. Kf4 {[%clk
0:00:42.6]} 33... Ncd4 {[%clk 0:00:13.9]} 34. Bf2 {[%clk 0:00:36.4]} 34... Ne2+
{[%clk 0:00:11.3]} 35. Kf3 {[%clk 0:00:36.3]} 35... Ned4+ {[%clk 0:00:10.7]} 36.
Kf4 {[%clk 0:00:36.4]} 36... h6 {[%clk 0:00:09]} 37. h4 {[%clk 0:00:35.3]} 37...
Nc6 {[%clk 0:00:06.9]} 38. g4 {[%clk 0:00:34.7]} 38... Nfe7 {[%clk 0:00:06.5]}
39. g5 {[%clk 0:00:32.5]} 39... Ng6+ {[%clk 0:00:06]} 40. Kg3 {[%clk 0:00:28]}
40... hxg5 {[%clk 0:00:05.6]} 41. hxg5 {[%clk 0:00:25.9]} 41... Ngxe5 {[%clk
0:00:06.1]} 42. Nxe5 {[%clk 0:00:25.2]} 42... Nxe5 {[%clk 0:00:06.7]} 43. Bxb6
{[%clk 0:00:25.8]} 43... Nc4 {[%clk 0:00:05.9]} 44. Bd4 {[%clk 0:00:24.4]} 44...
a4 {[%clk 0:00:05.4]} 45. Kf4 {[%clk 0:00:23.6]} 45... Kf7 {[%clk 0:00:05.6]}
46. Bc3 {[%clk 0:00:22.1]} 46... Kg6 {[%clk 0:00:02.7]} 47. Bd4 {[%clk 0:00:21]}
47... Kh5 {[%clk 0:00:02.5]} 48. Bxg7 {[%clk 0:00:20.3]} 48... Nd6 {[%clk
0:00:02.2]} 49. Be5 {[%clk 0:00:17.7]} 49... Nc4 {[%clk 0:00:01.8]} 50. Bc3
{[%clk 0:00:16.1]} 50... Kg6 {[%clk 0:00:02.5]} 51. Bd4 {[%clk 0:00:14.8]} 51...
Nd2 {[%clk 0:00:02.6]} 52. Bc3 {[%clk 0:00:10.4]} 52... Ne4 {[%clk 0:00:02.6]}
53. Ke5 {[%clk 0:00:09.8]} 53... Nxg5 {[%clk 0:00:01.9]} 54. Kd4 {[%clk
0:00:09.7]} 54... Kf5 {[%clk 0:00:02]} 55. Kc5 {[%clk 0:00:09.8]} 55... Ne4+
{[%clk 0:00:02.5]} 56. Kb4 {[%clk 0:00:09.7]} 56... Nxc3 {[%clk 0:00:03.4]} 57.
bxc3 {[%clk 0:00:09.7]} 57... e5 {[%clk 0:00:04.3]} 58. Kxa4 {[%clk 0:00:10.1]}
58... e4 {[%clk 0:00:04.7]} 59. Kb3 {[%clk 0:00:10.9]} 59... e3 {[%clk
0:00:04.7]} 60. Kc2 {[%clk 0:00:11.3]} 60... Ke4 {[%clk 0:00:04.9]} 61. Kd1
{[%clk 0:00:09.2]} 61... Kd3 {[%clk 0:00:05.3]} 62. a4 {[%clk 0:00:09.2]} 62...
Kxc3 {[%clk 0:00:05]} 63. a5 {[%clk 0:00:09.5]} 63... e2+ {[%clk 0:00:05.4]} 64.
Kxe2 {[%clk 0:00:09.4]} 64... d4 {[%clk 0:00:05.6]} 65. Kd1 {[%clk 0:00:09.4]}
1-0